Workbook

Sheet Instructivo
A1: CRITERIO DE PRIORIZACIÓN DE TRÁMITES ADMINISTRATIVOS
A2: Instructivo
A3: Consideraciones generales
A5: En las hojas “COSTO DE ADMINISTRACIÓN PÚBLICA”y “RESUMEN” para añadir más trámites y que apliquen las fórmulas, se deberá seleccionar la primera fila y copiarla una por cada trámite de la entidad
A7: Todas las hojas tienen columnas de color celeste, en las cuales NO deben ingresar valores ya que contienen fórmulas.
A8: Para la carga en GOB.EC. La institución debe recordar que el peso máximo del archivo es de 2 MB.
A9: Esquema de puntuación
A10: Para priorizar un trámite, se realizará un análisis de criterios básicos y adicionales basado en información que disponen las instituciones sujetas a esta norma técnica. Cada criterio será puntuado según los lineamientos presentes en esta norma.
A11: a) Demanda Anual
A12: Considerará el volumen o frecuencia de las solicitudes que ingresan al año a cada institución para la gestión de un trámite en particular.
A13: La identificación del volumen anual de los trámites se realizará a través de sus registros de transacciones y/o el número de visitas de consulta de información realizadas a través de páginas web institucionales.
A14: Para realizar el registro realice lo siguiente:
A15: 1.- Seleccione la hoja DEMANDA ANUAL
A16: 2.- Ingrese los trámites de la institución registrando el identificador y nombre en las columnas respectivas.
A17: 3.- Para cada trámite debe especificar en la columna DEMANDA ANUAL el volumen o frecuencia anual, de acuerdo a lo mencionado anteriormente.
A18: 4.- Una vez terminado el llenado solicitado presione el botón PUNTUACIÓN, se ordenara de menor a mayor.
A19: 5.- Usted visualizará el ordenamiento de los trámites ingresados de acuerdo al número de volumen o frecuencia anual.
A20: 6.- Así mismo, usted visualizará el puntaje obtenido en la columna PUNTUACIÓN de acuerdo al grupo obtenido por cada trámite de acuerdo al número de volumen o frecuencia anual cosiderando lo siguiente: ** Primer grupo (trámites con menor demanda no incluye los trámites con demanda 0 ) = 3 ** Segundo grupo (trámites con demanda intermedia) = 6 ** Tercer grupo (trámites con mayor demanda) = 10
A21: Cada vez que requiera actualizar el puntaje presionando el botón puntuación, debe verificar que la celda de la columna puntaje se encuentren vacías, es decir, se debe borrar cualquier valor de puntaje obtenido previamente.
A22: b) Volumen de quejas asociadas a un trámite:
A23: Considerará la cantidad de quejas recibidas en relación a un trámite durante un año. Estas quejas deberán estar documentadas en medios físicos y/o digitales.
A24: Para determinar la puntuación, se colocará en una tabla todos los trámites con sus correspondientes quejas ordenándose de menor a mayor. Se dividirá en 2 partes en los que cada grupo contenga la misma cantidad de trámites.
A25: Para realizar el registro realice lo siguiente:
A26: 1.- Seleccione la hoja VOLUMEN DE QUEJAS
A27: 2.- Ingrese los trámites de la institución registrando el identificador y nombre en las columnas respectivas. Si usted requiere de acuerdo al número de trámites copie filas adicionales que estén dentro del cuadro
A28: 3.- Para cada trámite debe especificar en la columna VOLUMEN QUEJAS el número de quejas anual, de acuerdo a lo mencionado anteriormente.
A29: 4.- Una vez terminado el llenado solicitado presione el botón PUNTUACIÓN.
A30: 5.- Usted visualizará el ordenamiento de los trámites ingresados de acuerdo al número de volumen o frecuencia anual.
A31: 6.- Así mismo, usted visualizará el puntaje obtenido en la columna PUNTUACIÓN de acuerdo al grupo obtenido por cada trámite de acuerdo al número de volumen o frecuencia anual cosiderando lo siguiente: La puntuación se basará en los siguientes grupos: ** Primer grupo (trámites con menor cantidad de quejas, no incluye los trámites con queja 0 ) = 4 ** Segundo grupo (trámites con mayor porcentaje de quejas) = 10
A32: el valor del volumen de quejas no debe ser superior al valor del volumen de la demana debido a que obtendrá un valor de porcentaje ilógico.
A33: c) Costo para la administración pública:
A34: En cada trámite, basado en un caso estándar, se deberá estimar el costo incurrido en el costo de personal y recursos necesarios para su atención desde que el administrado entregó todos los requisitos hasta que la institución entregue el producto, respuesta o servicio requerido en el trámite. Se considerará:
A35: • Costo de personal:
A36: Costo del personal para atender el trámite, se excluyen actividades realizadas automáticamente o que dependen del administrado. El tiempo deberá considerar únicamente el tiempo efectivo de trabajo del personal, no debe considerar el tiempo de espera o de movimiento.
A37: • Costo de recursos:
A38: Se deberá considerar el costo directo en el que la institución debe incurrir para atender un trámite. Se debe considerar los insumos o materia prima necesaria u cualquier otro que la institución considere pertinente.
A39: Para realizar el registro realice lo siguiente:
A40: 1.- Seleccione la hoja COSTO ADMINISTRACIÓN PÚBLICA
A41: 2.- Ingrese los trámites de la institución registrando el identificador y nombre en las columnas respectivas. Si usted requiere de acuerdo al número de trámites copie filas adicionales que estén dentro del cuadro
A42: 3.- Para calcular el tiempo de las actividades, utilizar la hoja AUXILIAR COSTO ADMINISTRACIÓN donde deberá listar todas las actividades que realiza la institución en un caso estándar y asignar el tiempo mínimo que toma cada actvidad (en horas). El tiempo total de las actividades, deberá ingresar en la correspondiente celda de la hoja COSTO ADMINISTRACIÓN PÚBLICA
A43: 4.- En función de la información registrada en el paso 3, la matriz entregará el costo del personal
A44: 5.- Completar la columna "Costo recursos", en la cual ingresará el costo directo en el que incurre la institución para entregar el trámite. En este valor se considerarán los valores correspondientes a insumos y/o materia prima mínimos que se invierten por cada trámite (no se considera mano de obra)
A45: 6.- La columna "Costo para la adm. pública" mostrará el costto de este criterio para cada trámite
A46: 7.- Una vez que disponga del Costo para la administración pública, presionar el botón "GENERAR".
A47: 8. Visualizar la hoja “RESUMEN DE COSTO AP” en la que va a encontrar copiada las celdas necesarias para el ordenamiento y puntuación de las mismas al presionar el botón “PUNTUACIÓN”
A48: 9.- Que se va a dividirá en 4 grupos que contengan el mismo número de trámites o cercano.:
A49: 10.- Calificado de acuerdo a lo siguiente: Primer grupo (trámites con menor costo para la administración) = 0; Segundo Grupo = 8; Tercer Grupo = 14 y Cuarto Grupo= 20
A50: d) Tiempo de respuesta:
A51: Considerará los tiempos que a las instituciones les toma dar respuesta a un trámite desde que reciben la solicitud del administrado hasta la finalización del mismo. Para la definición del tiempo se considerará un caso estándar.
A52: Para determinar la puntuación, se colocará en una tabla todos los trámites con el tiempo de respuesta, ordenándose de menor a mayor. Se dividirá en 2 grupos, en los que cada uno contenga la misma cantidad de trámites.
A53: Para realizar el registro realice lo siguiente:
A54: 1.- Seleccione la hoja TIEMPO DE RESPUESTA
A55: 2.- Ingrese los trámites de la institución registrando el identificador y nombre en las columnas respectivas. Si usted requiere de acuerdo al número de trámites copie filas adicionales que estén dentro del cuadro
A56: 3.- Para cada trámite debe especificar en la columna TIEMPO RESPUESTA el tiempo, de acuerdo a lo mencionado anteriormente.
A57: 4.- Una vez terminado el llenado solicitado presione el botón PUNTUACIÓN.
A58: 5.- Usted visualizará el ordenamiento de los trámites ingresados de acuerdo al número de volumen o frecuencia anual.
A59: 6.- Así mismo, usted visualizará el puntaje obtenido en la columna PUNTUACIÓN de acuerdo al grupo obtenido por cada trámite de acuerdo al número de volumen o frecuencia anual cosiderando lo siguiente: La puntuación considera lo siguiente: ** Primer grupo (menor o igual a 40 horas laboralres) = 0 ** Segundo grupo mayor 40 horas laboralres) = 30
A61: e) Canal de atención:
A62: Considerará los canales de atención a través de los cuales el administrado puede iniciar el trámite.
A63: Para realizar el registro realice lo siguiente:
A64: 1.- Seleccione la hoja CANAL ATENCIÓN
A65: 2.- Ingrese los trámites de la institución registrando el identificador y nombre en las columnas respectivas. Si usted requiere de acuerdo al número de trámites copie filas adicionales que estén dentro del cuadro
A66: 3.- Para cada trámite debe seleccionar el canal de atención del trámite en la columna CANAL ATENCIÓN, que pueden ser: El trámite se puede completar totalmente en línea: Se considera trámite totalmente en línea cuando el administrado no requiere realizar ninguna interacción presencial con la institución = 0 El trámite no se puede completar totalmente en línea: Se considera este caso, cuando el trámite incluye al menos una actividad, incluido mecanismos de pago, en la que el administrado deba acudir presencialmente a la institución, para la realización de dicho trámite. Los trámites presenciales se consideran dentro de esta categoría = 10
A67: 4.- De acuerdo a la selección usted obtendrá la puntuación del trámite que se visualizará en la columna PUNTUACIÓN.
A69: f) Resumen
A70: En esta hoja deberá consolidar todas las puntuaciones obtenidas para cada trámite en los criterios a) hasta e). Adicionalmente deberá analizar los 4 criterios adicionales que dispone la norma técnica, para estos últimos solamente deberá seleccionar en la celda correspondiente y la matriz asignará la puntuación adicional. Los criterios que deberá considerar son: - NECESIDADES CIUDADANAS: Si la institución ha implementado mecanismos para identificar necesidades ciudadanas respecto al trámite, seleccionar "SI", caso contrario, seleccionar "NO" - SUSCEPTIBILIDAD A CORRUPCIÓN: Si la institución dispone de información documentada sobre presuntos actos de corrupción, seleccionar "SI", caso contrario, seleccionar "NO" - VOLUMEN DE DEVOLUCIONES: Si la institución posee documentación sobre devoluciones del trámite en una cantidad significativa, seleccionar "SI", caso contrario, seleccionar "NO" - DESCONCENTRACIÓN: Si el trámite se realiza solo de forma presencial y, adicionalmente solo se atiende en la oficina matriz, seleccionar "SI", caso contrario, seleccionar "NO"
A71: En la columna puntaje total se realizará la sumatoria de los valores de los criterios básicos y adicionales. Este valor deberá registrarse en la plataforma GOB.EC
A73: PRIORIZACIÓN DE TRÁMITES: Una vez que se haya registrado el valor del diagnóstico económico y de la puntuación de todos y cada uno de los trámites publicados en la plataforma GOB.EC, la plataforma realizará la identificación de los trámites a simplificar de acuerdo a los criterios definidores en el artículo 11 de la norma técnica de diagnóstico económico y priorización de trámites administrativos

Sheet DEMANDA ANUAL
A1: PRIORIZACIÓN DE TRÁMITES ADMINISTRATIVOS
A2: DEMANDA ANUAL
A4: IDENTIFICADOR | B4: TRÁMITE | C4: DEMANDA ANUAL | D4: PUNTAJE
B5: Atención de la solicitud de Capacidades Especiales | C5: 300 | D5: 3
B6: Atención de la solicitud de cambio de tarifa | C6: 609 | D6: 3
B7: Atención de solicitud de Tercera Edad | C7: 1000 | D7: 6
B8: Atención de solicitud de cambio de nombre del titular del servicio | C8: 1078 | D8: 6
B9: Atención de solicitud de nuevo servicio de energía eléctrica | C9: 4111 | D9: 10
B10: Atención de solicitud de fallas en el servicio de alumbrado público | C10: 5000 | D10: 10
B11: Atención de reclamos de errores de facturación | C11: 6029 | D11: 10
B12: Atención de solicitud de fallas en el servicio de energía eléctrica | C12: 8000 | D12: 10

Sheet VOLUMEN DE QUEJAS
A1: PRIORIZACIÓN DE TRÁMITES ADMINISTRATIVOS
A2: VOLUMEN DE QUEJAS
A4: IDENTIFICADOR | B4: TRÁMITE | C4: VOLUMEN DEMANDA | D4: VOLUMEN DE QUEJAS | E4: porcentaje | F4: PUNTUACIÓN
B5: Atención de la solicitud de Capacidades Especiales | C5: 300 | D5: 0 | E5: 0 | F5: 0
B6: Atención de la solicitud de cambio de tarifa | C6: 609 | D6: 0 | E6: 0 | F6: 0
B7: Atención de solicitud de Tercera Edad | C7: 1000 | D7: 0 | E7: 0 | F7: 0
B8: Atención de solicitud de cambio de nombre del titular del servicio | C8: 1078 | D8: 0 | E8: 0 | F8: 0
B9: Atención de solicitud de nuevo servicio de energía eléctrica | C9: 4111 | D9: 0 | E9: 0 | F9: 0
B10: Atención de reclamos de errores de facturación | C10: 6029 | D10: 0 | E10: 0 | F10: 0
B11: Atención de solicitud de fallas en el servicio de alumbrado público | C11: 5000 | D11: 0 | E11: 0 | F11: 0
B12: Atención de solicitud de fallas en el servicio de energía eléctrica | C12: 8000 | D12: 0 | E12: 0 | F12: 0

Sheet COSTO ADMINISTRACIÓN PÚBLICA
A1: PRIORIZACIÓN DE TRÁMITES ADMINISTRATIVOS
A2: COSTOS PARA LA ADMINISTRACIÓN PÚBLICA
A4: IDENTIFICADOR | B4: TRÁMITE | C4: INSUMOS PARA COSTO | F4: COSTO PARA LA ADM. PÚBLICA | H4: SBU | I4: 400
C5: TIEMPO (HORAS) | D5: COSTO PERSONAL | E5: COSTO RECURSOS
B6: Atención de la solicitud de Capacidades Especiales | C6: 0.15 | D6: =C6*$I$4/160 -> 0.375 | E6: 0.012 | F6: =+D6+E6 -> 0.387
B7: Atención de la solicitud de cambio de tarifa | C7: 0.2 | D7: =C7*$I$4/160 -> 0.5 | E7: 0.012 | F7: =+D7+E7 -> 0.512
B8: Atención de solicitud de Tercera Edad | C8: 0.13 | D8: 0.325 | E8: 0.012 | F8: 0.337
B9: Atención de solicitud de cambio de nombre del titular del servicio | C9: 0.13 | D9: 0.325 | E9: 0 | F9: 0.325
B10: Atención de solicitud de nuevo servicio de energía eléctrica | C10: 1.12 | D10: 2.8 | E10: 0.25 | F10: 3.05
B11: Atención de reclamos de errores de facturación | C11: 0.23 | D11: 0.575 | E11: 0.02 | F11: 0.595
B12: Atención de solicitud de fallas en el servicio de alumbrado público | C12: 0.75 | D12: =C12*$I$4/160 -> 1.875 | E12: 0.2 | F12: 2.075
B13: Atención de solicitud de fallas en el servicio de energía eléctrica | C13: 0.67 | D13: =C13*$I$4/160 -> 1.675 | E13: 0.2 | F13: =+D13+E13 -> 1.875

Sheet RESUMEN DE COSTOS AP
A1: PRIORIZACIÓN DE TRÁMITES ADMINISTRATIVOS
A2: COSTOS PARA LA ADMINISTRACIÓN PÚBLICA
A4: IDENTIFICADOR | B4: TRÁMITE | C4: COSTO PARA LA ADM. PÚBLICA | D4: PUNTUACIÓN
B5: Atención de solicitud de cambio de nombre del titular del servicio | C5: 0.325 | D5: 5
B6: Atención de solicitud de Tercera Edad | C6: 0.337 | D6: 5
B7: Atención de la solicitud de Capacidades Especiales | C7: 0.387 | D7: 10
B8: Atención de la solicitud de cambio de tarifa | C8: ='COSTO ADMINISTRACIÓN PÚBLICA'!F7 -> 0.512 | D8: 10
B9: Atención de reclamos de errores de facturación | C9: ='COSTO ADMINISTRACIÓN PÚBLICA'!F11 -> 0.595 | D9: 20
B10: Atención de solicitud de fallas en el servicio de energía eléctrica | C10: ='COSTO ADMINISTRACIÓN PÚBLICA'!F13 -> 1.875 | D10: 20
B11: Atención de solicitud de fallas en el servicio de alumbrado público | C11: ='COSTO ADMINISTRACIÓN PÚBLICA'!F12 -> 2.075 | D11: 20
B12: Atención de solicitud de nuevo servicio de energía eléctrica | C12: ='COSTO ADMINISTRACIÓN PÚBLICA'!F10 -> 3.05 | D12: 20

Sheet AUXILIAR COSTO ADMINISTRACIÓN
A2: TRÁMITE: | B2: ATENCION DE LA SOLICITUD TERCERA EDAD
A3: NO. | B3: ACTIVIDAD | C3: TIEMPO (HORAS)
A4: 1 | B4: RECEPCION Y VERIFICACION DE NUMERO DE CEDULA DEL TITULAR | C4: =2/60 -> 0.03333333333 | F4: TRÁMITE: | G4: Atención de reclamos de errores de facturación | K4: TRÁMITE: | L4: ATENCION DE LA SOLICITUD DE CAMBIO DE TARIFA
A5: 2 | B5: RECEPCION Y VERIFICACION DE NUMERO DE CEDULA DEL CONYUGE | C5: =2/60 -> 0.03333333333 | F5: NO. | G5: ACTIVIDAD | H5: TIEMPO (HORAS) | K5: NO. | L5: ACTIVIDAD | M5: TIEMPO (HORAS) | N5: minutos
A6: 3 | B6: INGRESO Y VERIFICACION DE NO CONTAR CON EL SUBSIDIO EN OTRO MEDIDOR TITULAR | C6: 0.03333333333 | F6: 1 | G6: Se valida la información del consumidor o usuario final en el sistema | H6: =I6/60 -> 0.05 | I6: 3 | K6: 1 | L6: El Auxiliar de Clientes verifica la documentación y la información en los sistemas informáticos pertinentes, | M6: =N6/60 -> 0.05 | N6: 3
A7: 4 | B7: INGRESO Y VERIFICACION DE NO CONTAR CON EL SUBSIDIO EN OTRO MEDIDOR CONYUGE} | C7: =2/60 -> 0.03333333333 | F7: 2 | G7: el Auxiliar de Clientes ingresa el reclamo en el sistema SAR | H7: =I7/60 -> 0.03333333333 | I7: 2 | K7: 2 | L7: Ingresa la solicitud en el sistemade servicios comerciales | M7: =N7/60 -> 0.05 | N7: 3
A8: 5 | F8: 3 | G8: se le proporciona al consumidor o usuario final, el Código de Reclamo con el cual podrá dar seguimiento y ver el resultado de su requerimiento | H8: =I8/60 -> 0.01666666667 | I8: 1 | K8: 3 | L8: Se realiza la verificación del uso de energía mediante una inspección | M8: =N8/60 -> 0.08333333333 | N8: 5
A9: 6 | F9: 4 | G9: en el caso de verificación de inconsistencias en las lecturas reportadas, se procede con la refacturación del valor | H9: 0.06666666667 | I9: 4 | K9: 4 | L9: Si el cambio de tarifa es aprobado se procede a actualizar la tarifa que será reflejada a partir de la siguiente emisión de facturas | M9: 0.01666666667 | N9: 1
A10: 7 | F10: 5 | G10: Se emite un nuevo comprobante de consumo eléctrico, y se genera la nota de crédito correspondiente | H10: 0.03333333333 | I10: 2 | K10: 5
A11: 8 | F11: 6 | G11: Cierre del reclamo en el sistema SAR | H11: 0.03333333333 | I11: 2 | K11: 6
A12: 9 | F12: 7 | K12: 7
A13: 10 | F13: 8 | K13: 8
A14: 11 | F14: 9 | K14: 9
A15: 12 | F15: 10 | K15: 10
A16: 13 | F16: 11 | K16: 11
A17: 14 | F17: 12 | K17: 12
A18: 15 | F18: 13 | K18: 13
F19: 14 | K19: 14
B20: SUMATORIA ACTIVIDADES | C20: =SUM(C4:C19) -> 0.1333333333 | F20: 15 | K20: 15
G22: SUMATORIA ACTIVIDADES | H22: =SUM(H6:H21) -> 0.2333333333 | L22: SUMATORIA ACTIVIDADES | M22: =SUM(M6:M21) -> 0.2
A26: TRÁMITE: | B26: ATENCION DE LA SOLICITUD DE CAPACIDADES ESPECIALES | F26: TRÁMITE: | G26: ATENCION DE LA SOLICITUD DE CAMBIO DE NOMBRE DEL TITULAR DEL SERVICIO | K26: TRÁMITE: | L26: ATENCION DE LA SOLICITUD DE NUEVO SERVICIO DE ENERGIA ELECTRICA
A27: NO. | B27: ACTIVIDAD | C27: TIEMPO (HORAS) | F27: NO. | G27: ACTIVIDAD | H27: TIEMPO (HORAS) | K27: NO. | L27: ACTIVIDAD | M27: TIEMPO (HORAS)
A28: 1 | B28: RECEPCION Y VERIFICACION DE NUMERO DE CEDULA DEL TITULAR | C28: =2/60 -> 0.03333333333 | F28: 1 | G28: El Auxiliar de Clientes revisa la documentación e información necesaria en el sistema comercial de la EERSA. | H28: =I28/60 -> 0.08333333333 | I28: 5 | K28: 1 | L28: Se revisa que la documentación cumpla con los requisitos | M28: =N28/60 -> 0.05 | N28: 3
A29: 2 | B29: RECEPCION Y VERIFICACION DE NUMERO DE CEDULA DEL CONYUGE | C29: =2/60 -> 0.03333333333 | F29: 2 | G29: El Auxiliar de Clientes genera la solicitud en el Sistema Comercial de la EERSA | H29: =I29/60 -> 0.05 | I29: 3 | K29: 2 | L29: Se verifica en la ficha de la DINARDAP | M29: =N29/60 -> 0.05 | N29: 3
A30: 3 | B30: INGRESO Y VERIFICACION DE NO CONTAR CON EL SUBSIDIO EN OTRO MEDIDOR TITULAR | C30: 0.03333333333 | F30: 3 | K30: 3 | L30: Se verifica que no hay deudas pendientes del solicitante en el sistema comercial. | M30: 0.01666666667 | N30: 1
A31: 4 | B31: INGRESO Y VERIFICACION DE NO CONTAR CON EL SUBSIDIO EN OTRO MEDIDOR CONYUGE} | C31: =2/60 -> 0.03333333333 | F31: 4 | K31: 4 | L31: Se verifica datos del medidor y poste en el GIS. | M31: 0.03333333333 | N31: 2
A32: 5 | B32: RECEPCION DE COPIA DE CARNET DE DICAPACIDAD | C32: =1/60 -> 0.01666666667 | F32: 5 | K32: 5 | L32: Se ingresa los datos en el sistema de solicitudes de servicio eléctrico. | M32: 0.05 | N32: 3
A33: 6 | F33: 6 | K33: 6 | L33: Se genera el número de solicitud que es entregado al consumidor o usuario final | M33: 0.01666666667 | N33: 1
A34: 7 | F34: 7 | K34: 7 | L34: Se realizará la inspección por parte del personal de la EERSA para determinar las características del servicio solicitado | M34: 0.1666666667 | N34: 10
A35: 8 | F35: 8 | K35: 8 | L35: Ingreso de datos por parte del inspector | M35: 0.1333333333 | N35: 8
A36: 9 | F36: 9 | K36: 9 | L36: Una vez aprobada la solicitud, el consumidor o usuario final debe realizar el pago del depósito en garantía | M36: 0.05 | N36: 3
A37: 10 | F37: 10 | K37: 10 | L37: Suscripción del Contrato de Suministro, en las ventanillas de Servicios en caso de ser un nuevo servicio | M37: 0.05 | N37: 3
A38: 11 | F38: 11 | K38: 11 | L38: instalacion del servicio | M38: =N38/60 -> 0.5 | N38: 30
A39: 12 | F39: 12 | K39: 12
A40: 13 | F40: 13 | K40: 13
A41: 14 | F41: 14 | K41: 14
A42: 15 | F42: 15 | K42: 15
B44: SUMATORIA ACTIVIDADES | C44: =SUM(C28:C43) -> 0.15 | G44: SUMATORIA ACTIVIDADES | H44: =SUM(H28:H43) -> 0.1333333333 | L44: SUMATORIA ACTIVIDADES | M44: =SUM(M28:M43) -> 1.116666667
K48: TRÁMITE: | L48: Atención de solicitud de fallas en el servicio de alumbrado público
K49: NO. | L49: ACTIVIDAD | M49: TIEMPO (HORAS)
K50: 1 | L50: RECEPCION Y VERIFICACION DE NUMERO DE CEDULA DEL TITULAR | M50: =2/60 -> 0.03333333333
K51: 2 | L51: INGRESO Y VERIFICACION DE DATOS EN EL AS400 | M51: =3/60 -> 0.05
K52: 3 | L52: INGRESO DE DATOS EN SITEMA SAR | M52: =5/60 -> 0.08333333333
K53: 4 | L53: INGRESO DE DATOS AL WEB CALL CENTER | M53: =5/60 -> 0.08333333333
K54: 5
K55: 6
K56: 7
K57: 8
K58: 9
K59: 10
K60: 11
K61: 12
K62: 13
K63: 14
K64: 15
L66: SUMATORIA ACTIVIDADES | M66: =SUM(M50:M65) -> 0.25

Sheet TIEMPO DE RESPUESTA
A1: PRIORIZACIÓN DE TRÁMITES ADMINISTRATIVOS
A2: TIEMPO DE RESPUESTA
A4: IDENTIFICADOR | B4: TRÁMITE | C4: TIEMPO RESPUESTA (horas laborables) | D4: PUNTUACIÓN
B5: Atención de la solicitud de Capacidades Especiales | C5: 0.15 | D5: 0
B6: Atención de la solicitud de cambio de tarifa | C6: 0.2 | D6: 0
B7: Atención de la solicitud de Tercera Edad | C7: 0.13 | D7: 0
B8: Atención de solicitud de cambio de nombre del titular del servicio | C8: 0.13 | D8: 0
B9: Atención de solicitud de nuevo servicio de energía eléctrica | C9: 1.12 | D9: 0
B10: Atención de reclamos de errores de facturación | C10: 0.23 | D10: 0
B11: Atención de solicitud de fallas en el servicio de alumbrado público | C11: 0.75 | D11: 0
B12: Atención de solicitud de fallas en el servicio de energía eléctrica | C12: 0.67 | D12: 0

Sheet CANAL ATENCIÓN
A1: PRIORIZACIÓN DE TRÁMITES ADMINISTRATIVOS
A2: CANAL DE ATENCIÓN
I3: Totalmente en Línea
A4: IDENTIFICADOR | B4: TRÁMITE | C4: CANAL ATENCIÓN | D4: PUNTUACIÓN | I4: No se completa totalmente en línea.
B5: Atención de la solicitud de Capacidades Especiales | C5: No se completa totalmente en línea. | D5: =IF(ISBLANK(C5),"",IF(C5="Totalmente en línea",0,IF(C5="No se completa totalmente en línea.",10))) -> 10
B6: Atención de la solicitud de cambio de tarifa | C6: No se completa totalmente en línea. | D6: =IF(ISBLANK(C6),"",IF(C6="Totalmente en línea",0,IF(C6="No se completa totalmente en línea.",10))) -> 10
B7: Atención de la solicitud de Tercera Edad | C7: No se completa totalmente en línea. | D7: 10
B8: Atención de solicitud de cambio de nombre del titular del servicio | C8: No se completa totalmente en línea. | D8: 10
B9: Atención de solicitud de nuevo servicio de energía eléctrica | C9: No se completa totalmente en línea. | D9: 10
B10: Atención de reclamos de errores de facturación | C10: Totalmente en Línea | D10: 0
B11: Atención de solicitud de fallas en el servicio de alumbrado público | C11: Totalmente en Línea | D11: 0
B12: Atención de solicitud de fallas en el servicio de energía eléctrica | C12: Totalmente en Línea | D12: 0

Sheet RESUMEN
C1: BÁSICOS | H1: ADICIONALES
A2: ID trámite | B2: Nombre del trámite | C2: Demanda | D2: Quejas | E2: Costo para administración | F2: Tiempo de respuesta | G2: Canal de atención | H2: Necesidades ciudadanas | J2: Susceptibilidad a corrupción | L2: Volumen de devoluciones | N2: PUNTAJE TOTAL
H3: Criterio | I3: Puntuación | J3: Criterio | K3: Puntuación | L3: Criterio | M3: Puntuación | U3: demanda | V3: 0 | W3: 3 | X3: 6 | Y3: 10
B4: Atención de la solicitud de Capacidades Especiales | C4: 3 | D4: 0 | E4: 10 | F4: 0 | G4: 10 | H4: NO | I4: =IF(H4="SI",5,0) -> 0 | J4: NO | K4: =IF(J4="SI",10,0) -> 0 | L4: NO | M4: =IF(L4="SI",5,0) -> 0 | N4: =SUM(C4:G4,I4,K4,M4) -> 23 | U4: quejas | V4: 0 | W4: 4 | X4: 10
B5: Atención de la solicitud de cambio de tarifa | C5: 3 | D5: 0 | E5: 10 | F5: 0 | G5: 10 | H5: NO | I5: =IF(H5="SI",5,0) -> 0 | J5: NO | K5: =IF(J5="SI",10,0) -> 0 | L5: NO | M5: =IF(L5="SI",5,0) -> 0 | N5: =SUM(C5:G5,I5,K5,M5) -> 23 | U5: cpa | V5: 5 | W5: 10 | X5: 20
B6: Atención de solicitud de Tercera Edad | C6: 6 | D6: 0 | E6: 5 | F6: 0 | G6: 10 | H6: NO | I6: 0 | J6: NO | K6: 0 | L6: NO | M6: 0 | N6: 21 | U6: tr | V6: 0 | W6: 10 | X6: 30
B7: Atención de solicitud de cambio de nombre del titular del servicio | C7: 6 | D7: 0 | E7: 5 | F7: 0 | G7: 10 | H7: NO | I7: 0 | J7: NO | K7: 0 | L7: NO | M7: 0 | N7: 21 | U7: ca | V7: 0 | W7: 10 | X7: 30
B8: Atención de solicitud de nuevo servicio de energía eléctrica | C8: 10 | D8: 0 | E8: 20 | F8: 0 | G8: 10 | H8: NO | I8: 0 | J8: NO | K8: 0 | L8: NO | M8: 0 | N8: 40 | V8: SI | W8: NO
B9: Atención de reclamos de errores de facturación | C9: 10 | D9: 0 | E9: 20 | F9: 0 | G9: 0 | H9: NO | I9: 0 | J9: NO | K9: 0 | L9: NO | M9: 0 | N9: 30
B10: Atención de solicitud de fallas en el servicio de alumbrado público | C10: 10 | D10: 0 | E10: 20 | F10: 0 | G10: 0 | H10: SI | I10: 5 | J10: NO | K10: 0 | L10: NO | M10: 0 | N10: 35
B11: Atención de solicitud de fallas en el servicio de energía eléctrica | C11: 10 | D11: 0 | E11: 20 | F11: 0 | G11: 0 | H11: SI | I11: 5 | J11: NO | K11: 0 | L11: NO | M11: 0 | N11: 35
